Workbook

Sheet Sheet1
A1: 附件
A2: 贵安新区2025年公开招聘事业单位工作人员面试成绩、总成绩及进入体检环节人员名单
A3: 序号 | B3: 姓名 | C3: 准考证号 | D3: 单位 | E3: 报考岗位代码 | F3: 笔试成绩 | G3: 笔试成绩 百分制 | H3: 笔试成绩60% | I3: 面试成绩 | J3: 面试成绩40% | K3: 笔试、面试成绩 | L3: 综合排名 | M3: 是否进入体检
A4: 1 | B4: 赵芮 | C4: 202512012922 | D4: 贵安新区纪检监察工委留置所 | E4: 20250101 | F4: 222.76 | G4: =ROUND(F4/3,2) -> 74.25 | H4: =G4*0.6 -> 44.55 | I4: 80.20 | J4: =I4*0.4 -> 32.08 | K4: =H4+J4 -> 76.63 | L4: =IF(E4=E3,L3+1,1) -> 1 | M4: 是
A5: 2 | B5: 刘珏江 | C5: 202512011618 | D5: 贵安新区纪检监察工委留置所 | E5: 20250101 | F5: 210.49 | G5: 70.16 | H5: 42.10 | I5: 84.60 | J5: =I5*0.4 -> 33.84 | K5: =H5+J5 -> 75.94 | L5: =IF(E5=E4,L4+1,1) -> 2 | M5: 是
A6: 3 | B6: 刘姿妤 | C6: 202512013121 | D6: 贵安新区纪检监察工委留置所 | E6: 20250101 | F6: 211.88 | G6: 70.63 | H6: 42.38 | I6: 77.00 | J6: =I6*0.4 -> 30.80 | K6: =H6+J6 -> 73.18 | L6: =IF(E8=E5,L5+1,1) -> 3
A7: 4 | B7: 李欢 | C7: 202512013501 | D7: 贵安新区纪检监察工委留置所 | E7: 20250101 | F7: 208.00 | G7: 69.33 | H7: 41.60 | I7: 73.20 | J7: =I7*0.4 -> 29.28 | K7: =H7+J7 -> 70.88 | L7: =IF(E6=E8,L6+1,1) -> 4
A8: 5 | B8: 滕晓笛 | C8: 202512011319 | D8: 贵安新区纪检监察工委留置所 | E8: 20250101 | F8: 214.16 | G8: 71.39 | H8: 42.83 | I8: 70.00 | J8: =I8*0.4 -> 28.00 | K8: =H8+J8 -> 70.83 | L8: 5
A9: 6 | B9: 朱梓娴 | C9: 202512011515 | D9: 贵安新区纪检监察工委留置所 | E9: 20250101 | F9: 222.60 | G9: 74.20 | H9: 44.52 | I9: 缺考 | J9: 0.00 | K9: =H9 -> 44.52 | L9: 6
A10: 7 | B10: 张孝方 | C10: 202512012827 | D10: 贵安新区纪检监察工委留置所 | E10: 20250102 | F10: 211.06 | G10: 70.35 | H10: 42.21 | I10: 79.60 | J10: =I10*0.4 -> 31.84 | K10: =H10+J10 -> 74.05 | L10: =IF(E7=E11,L9+1,1) -> 1 | M10: 是
A11: 8 | B11: 李娟 | C11: 202512012318 | D11: 贵安新区纪检监察工委留置所 | E11: 20250102 | F11: 218.73 | G11: 72.91 | H11: 43.75 | I11: 74.20 | J11: 29.68 | K11: =H11+J11 -> 73.43 | L11: 2 | M11: 是
A12: 9 | B12: 许成娅 | C12: 202512014130 | D12: 贵安新区纪检监察工委留置所 | E12: 20250102 | F12: 207.45 | G12: 69.15 | H12: 41.49 | I12: 78.40 | J12: 31.36 | K12: =H12+J12 -> 72.85 | L12: 3 | M12: 是
A13: 10 | B13: 徐童 | C13: 202512010902 | D13: 贵安新区纪检监察工委留置所 | E13: 20250102 | F13: 209.85 | G13: =ROUND(F13/3,2) -> 69.95 | H13: =G13*0.6 -> 41.97 | I13: 75.60 | J13: 30.24 | K13: =H13+J13 -> 72.21 | L13: 4 | M13: 是
A14: 11 | B14: 黄文静 | C14: 202512012124 | D14: 贵安新区纪检监察工委留置所 | E14: 20250102 | F14: 196.42 | G14: 65.47 | H14: 39.28 | I14: 80.40 | J14: 32.16 | K14: 71.44 | L14: 5
A15: 12 | B15: 陈杰 | C15: 202512013814 | D15: 贵安新区纪检监察工委留置所 | E15: 20250102 | F15: 211.62 | G15: 70.54 | H15: 42.32 | I15: 70.80 | J15: 28.32 | K15: 70.64 | L15: 6
A16: 13 | B16: 于晓敏 | C16: 202512010206 | D16: 贵安新区纪检监察工委留置所 | E16: 20250102 | F16: 199.78 | G16: 66.59 | H16: 39.95 | I16: 75.80 | J16: 30.32 | K16: 70.27 | L16: 7
A17: 14 | B17: 吴晓慧 | C17: 202512010812 | D17: 贵安新区纪检监察工委留置所 | E17: 20250102 | F17: 202.63 | G17: 67.54 | H17: 40.52 | I17: 73.00 | J17: 29.20 | K17: 69.72 | L17: 8
A18: 15 | B18: 张旺 | C18: 202512013604 | D18: 贵安新区纪检监察工委留置所 | E18: 20250102 | F18: 208.22 | G18: 69.41 | H18: 41.65 | I18: 67.40 | J18: 26.96 | K18: 68.61 | L18: 9
A19: 16 | B19: 彭发 | C19: 202512013809 | D19: 贵安新区纪检监察工委留置所 | E19: 20250102 | F19: 209.01 | G19: 69.67 | H19: 41.80 | I19: 67.00 | J19: 26.80 | K19: 68.60 | L19: 10
A20: 17 | B20: 高鹏杰 | C20: 202512012724 | D20: 贵安新区纪检监察工委留置所 | E20: 20250102 | F20: 203.37 | G20: 67.79 | H20: 40.67 | I20: 缺考 | J20: 0.00 | K20: 40.67 | L20: 11
A21: 18 | B21: 颜熙 | C21: 202512010220 | D21: 贵安新区纪检监察工委留置所 | E21: 20250102 | F21: 195.42 | G21: 65.14 | H21: 39.08 | I21: 缺考 | J21: 0.00 | K21: 39.08 | L21: 12
A22: 19 | B22: 杨洁 | C22: 202512012423 | D22: 贵安新区机关事务和法律服务中心 | E22: 20250103 | F22: 209.97 | G22: 69.99 | H22: 41.99 | I22: 83.40 | J22: =I22*0.4 -> 33.36 | K22: 75.35 | L22: 1 | M22: 是
A23: 20 | B23: 吴金玲 | C23: 202512014003 | D23: 贵安新区机关事务和法律服务中心 | E23: 20250103 | F23: 208.17 | G23: 69.39 | H23: 41.63 | I23: 78.80 | J23: 31.52 | K23: 73.15 | L23: 2
A24: 21 | B24: 杨莉 | C24: 202512011614 | D24: 贵安新区机关事务和法律服务中心 | E24: 20250103 | F24: 215.23 | G24: 71.74 | H24: 43.04 | I24: 74.60 | J24: 29.84 | K24: 72.88 | L24: 3
A25: 22 | B25: 张警文 | C25: 202512011402 | D25: 贵安新区机关事务和法律服务中心 | E25: 20250104 | F25: 223.13 | G25: 74.38 | H25: 44.63 | I25: 81.40 | J25: 32.56 | K25: 77.19 | L25: 1 | M25: 是
A26: 23 | B26: 杨羽佳 | C26: 202512010328 | D26: 贵安新区机关事务和法律服务中心 | E26: 20250104 | F26: 218.38 | G26: 72.79 | H26: 43.67 | I26: 81.60 | J26: 32.64 | K26: 76.31 | L26: 2
A27: 24 | B27: 龙淑雨 | C27: 202512011822 | D27: 贵安新区机关事务和法律服务中心 | E27: 20250104 | F27: 215.89 | G27: 71.96 | H27: 43.18 | I27: 77.80 | J27: 31.12 | K27: 74.30 | L27: 3
A28: 25 | B28: 赵宇 | C28: 202512014218 | D28: 贵安新区党群工作和人才服务中心 | E28: 20250105 | F28: 203.28 | G28: 67.76 | H28: 40.66 | I28: 83.60 | J28: 33.44 | K28: 74.10 | L28: 1 | M28: 是
A29: 26 | B29: 唐婷婷 | C29: 202512014122 | D29: 贵安新区党群工作和人才服务中心 | E29: 20250105 | F29: 190.59 | G29: 63.53 | H29: 38.12 | I29: 72.80 | J29: 29.12 | K29: 67.24 | L29: 2
A30: 27 | B30: 陈星谕 | C30: 202512013105 | D30: 贵安新区党群工作和人才服务中心 | E30: 20250106 | F30: 225.01 | G30: 75.00 | H30: 45.00 | I30: 84.80 | J30: 33.92 | K30: 78.92 | L30: 1 | M30: 是
A31: 28 | B31: 欧阳如珂 | C31: 202512014013 | D31: 贵安新区党群工作和人才服务中心 | E31: 20250106 | F31: 235.04 | G31: 78.35 | H31: 47.01 | I31: 79.40 | J31: 31.76 | K31: 78.77 | L31: 2
A32: 29 | B32: 李杰 | C32: 202512012921 | D32: 贵安新区党群工作和人才服务中心 | E32: 20250106 | F32: 228.09 | G32: 76.03 | H32: 45.62 | I32: 74.40 | J32: 29.76 | K32: 75.38 | L32: 3
A33: 30 | B33: 李雨婷 | C33: 202512013116 | D33: 贵安新区统计中心 | E33: 20250107 | F33: 234.75 | G33: 78.25 | H33: 46.95 | I33: 85.00 | J33: 34.00 | K33: 80.95 | L33: 1 | M33: 是
A34: 31 | B34: 殷彩鑫 | C34: 202512010813 | D34: 贵安新区统计中心 | E34: 20250107 | F34: 226.39 | G34: 75.46 | H34: 45.28 | I34: 81.80 | J34: 32.72 | K34: 78.00 | L34: 2
A35: 32 | B35: 何舒越 | C35: 202512013713 | D35: 贵安新区统计中心 | E35: 20250107 | F35: 222.65 | G35: 74.22 | H35: 44.53 | I35: 81.60 | J35: 32.64 | K35: 77.17 | L35: 3
A36: 33 | B36: 杨旭涛 | C36: 202512010625 | D36: 贵安新区大数据发展服务中心 | E36: 20250108 | F36: 210.47 | G36: 70.16 | H36: 42.10 | I36: 81.80 | J36: 32.72 | K36: 74.82 | L36: 1 | M36: 是
A37: 34 | B37: 张怡 | C37: 202512013404 | D37: 贵安新区大数据发展服务中心 | E37: 20250108 | F37: 206.95 | G37: 68.98 | H37: 41.39 | I37: 81.00 | J37: 32.40 | K37: 73.79 | L37: 2
A38: 35 | B38: 余文瑾 | C38: 202512013620 | D38: 贵安新区大数据发展服务中心 | E38: 20250108 | F38: 213.55 | G38: 71.18 | H38: 42.71 | I38: 缺考 | J38: 0.00 | K38: 42.71 | L38: 3
A39: 36 | B39: 许文汇 | C39: 202512011017 | D39: 贵安新区安全生产工作服务中心 | E39: 20250109 | F39: 203.62 | G39: 67.87 | H39: 40.72 | I39: 84.20 | J39: =I39*0.4 -> 33.68 | K39: 74.40 | L39: 1 | M39: 是
A40: 37 | B40: 孙娜 | C40: 202512011617 | D40: 贵安新区安全生产工作服务中心 | E40: 20250109 | F40: 212.72 | G40: 70.91 | H40: 42.55 | I40: 79.60 | J40: =I40*0.4 -> 31.84 | K40: 74.39 | L40: 2
A41: 38 | B41: 林筑 | C41: 202512013217 | D41: 贵安新区安全生产工作服务中心 | E41: 20250109 | F41: 204.00 | G41: 68.00 | H41: 40.80 | I41: 79.00 | J41: =I41*0.4 -> 31.60 | K41: 72.40 | L41: 3
A42: 39 | B42: 吴秋玥 | C42: 202512012805 | D42: 贵安新区社会事业服务中心 | E42: 20250110 | F42: 221.04 | G42: =ROUND(F42/3,2) -> 73.68 | H42: =G42*0.6 -> 44.21 | I42: 87.80 | J42: =I42*0.4 -> 35.12 | K42: =H42+J42 -> 79.33 | L42: 1 | M42: 是
A43: 40 | B43: 黄城玮 | C43: 202512011120 | D43: 贵安新区社会事业服务中心 | E43: 20250110 | F43: 218.08 | G43: 72.69 | H43: 43.61 | I43: 77.60 | J43: 31.04 | K43: 74.65 | L43: 2 | M43: 是
A44: 41 | B44: 宋天宇 | C44: 202512012220 | D44: 贵安新区社会事业服务中心 | E44: 20250110 | F44: 212.64 | G44: 70.88 | H44: 42.53 | I44: 79.60 | J44: 31.84 | K44: 74.37 | L44: 3 | M44: 是
A45: 42 | B45: 袁双艳 | C45: 202512013110 | D45: 贵安新区社会事业服务中心 | E45: 20250110 | F45: 218.21 | G45: 72.74 | H45: 43.64 | I45: 76.00 | J45: 30.40 | K45: 74.04 | L45: 4
A46: 43 | B46: 李钦 | C46: 202512013424 | D46: 贵安新区社会事业服务中心 | E46: 20250110 | F46: 217.51 | G46: 72.50 | H46: 43.50 | I46: 76.20 | J46: 30.48 | K46: 73.98 | L46: 5
A47: 44 | B47: 杨依依 | C47: 202512010202 | D47: 贵安新区社会事业服务中心 | E47: 20250110 | F47: 218.61 | G47: 72.87 | H47: 43.72 | I47: 74.20 | J47: 29.68 | K47: 73.40 | L47: 6
A48: 45 | B48: 卢欣 | C48: 202512013002 | D48: 贵安新区社会事业服务中心 | E48: 20250110 | F48: 217.76 | G48: 72.59 | H48: 43.55 | I48: 73.40 | J48: 29.36 | K48: 72.91 | L48: 7
A49: 46 | B49: 周引影 | C49: 202512010720 | D49: 贵安新区社会事业服务中心 | E49: 20250110 | F49: 216.13 | G49: 72.04 | H49: 43.22 | I49: 72.80 | J49: 29.12 | K49: 72.34 | L49: 8
A50: 47 | B50: 司胜红 | C50: 202512010227 | D50: 贵安新区社会事业服务中心 | E50: 20250110 | F50: 218.87 | G50: 72.96 | H50: 43.78 | I50: 70.60 | J50: 28.24 | K50: 72.02 | L50: 9
A51: 48 | B51: 武慧君 | C51: 202512013817 | D51: 贵安新区社会事业服务中心 | E51: 20250111 | F51: 219.15 | G51: 73.05 | H51: 43.83 | I51: 82.00 | J51: 32.80 | K51: 76.63 | L51: 1 | M51: 是
A52: 49 | B52: 李应鹏 | C52: 202512011109 | D52: 贵安新区社会事业服务中心 | E52: 20250111 | F52: 208.49 | G52: 69.50 | H52: 41.70 | I52: 83.20 | J52: 33.28 | K52: 74.98 | L52: 2
A53: 50 | B53: 梁苑 | C53: 202512010713 | D53: 贵安新区社会事业服务中心 | E53: 20250111 | F53: 218.21 | G53: 72.74 | H53: 43.64 | I53: 76.40 | J53: 30.56 | K53: 74.20 | L53: 3
A54: 51 | B54: 张真 | C54: 202512011406 | D54: 贵安新区社会事业服务中心 | E54: 20250112 | F54: 212.25 | G54: 70.75 | H54: 42.45 | I54: 88.20 | J54: 35.28 | K54: 77.73 | L54: 1 | M54: 是
A55: 52 | B55: 陈瑞淇 | C55: 202512011018 | D55: 贵安新区社会事业服务中心 | E55: 20250112 | F55: 219.56 | G55: 73.19 | H55: 43.91 | I55: 79.60 | J55: 31.84 | K55: 75.75 | L55: 2
A56: 53 | B56: 刘金玉 | C56: 202512014115 | D56: 贵安新区社会事业服务中心 | E56: 20250112 | F56: 208.59 | G56: 69.53 | H56: 41.72 | I56: 77.80 | J56: 31.12 | K56: 72.84 | L56: 3
A57: 54 | B57: 肖宇恒 | C57: 202512012102 | D57: 贵安新区社会事业服务中心 | E57: 20250113 | F57: 229.83 | G57: 76.61 | H57: 45.97 | I57: 80.60 | J57: 32.24 | K57: 78.21 | L57: 1 | M57: 是
A58: 55 | B58: 王晟懿 | C58: 202512011502 | D58: 贵安新区社会事业服务中心 | E58: 20250113 | F58: 209.73 | G58: 69.91 | H58: 41.95 | I58: 72.80 | J58: 29.12 | K58: 71.07 | L58: 2
A59: 56 | B59: 师月维 | C59: 202512012624 | D59: 贵安新区社会事业服务中心 | E59: 20250113 | F59: 215.21 | G59: 71.74 | H59: 43.04 | I59: 缺考 | J59: 0.00 | K59: 43.04 | L59: 3
A60: 57 | B60: 袁梦筑 | C60: 202512013709 | D60: 贵安新区社会事业服务中心 | E60: 20250114 | F60: 205.64 | G60: 68.55 | H60: 41.13 | I60: 75.80 | J60: 30.32 | K60: 71.45 | L60: 1 | M60: 是
A61: 58 | B61: 邓依 | C61: 202512012608 | D61: 贵安新区社会事业服务中心 | E61: 20250114 | F61: 205.36 | G61: 68.45 | H61: 41.07 | I61: 75.80 | J61: 30.32 | K61: 71.39 | L61: 2
A62: 59 | B62: 陈倩苇 | C62: 202512011111 | D62: 贵安新区社会事业服务中心 | E62: 20250114 | F62: 205.56 | G62: 68.52 | H62: 41.11 | I62: 72.80 | J62: 29.12 | K62: 70.23 | L62: 3
A63: 60 | B63: 杨新月 | C63: 202512012604 | D63: 贵安新区社会事业服务中心 | E63: 20250115 | F63: 223.03 | G63: 74.34 | H63: 44.60 | I63: 79.00 | J63: 31.60 | K63: 76.20 | L63: 1 | M63: 是
A64: 61 | B64: 孙陈翘楚 | C64: 202512013805 | D64: 贵安新区社会事业服务中心 | E64: 20250115 | F64: 216.85 | G64: 72.28 | H64: 43.37 | I64: 81.60 | J64: 32.64 | K64: 76.01 | L64: 2 | M64: 是
A65: 62 | B65: 黄钰婷 | C65: 202512012708 | D65: 贵安新区社会事业服务中心 | E65: 20250115 | F65: 216.78 | G65: 72.26 | H65: 43.36 | I65: 78.40 | J65: 31.36 | K65: 74.72 | L65: 3
A66: 63 | B66: 段秋印 | C66: 202512012128 | D66: 贵安新区社会事业服务中心 | E66: 20250115 | F66: 212.34 | G66: 70.78 | H66: 42.47 | I66: 80.40 | J66: 32.16 | K66: 74.63 | L66: 4
A67: 64 | B67: 唐越 | C67: 202512012926 | D67: 贵安新区社会事业服务中心 | E67: 20250115 | F67: 214.60 | G67: 71.53 | H67: 42.92 | I67: 76.60 | J67: 30.64 | K67: 73.56 | L67: 5
A68: 65 | B68: 王红美 | C68: 202512014103 | D68: 贵安新区社会事业服务中心 | E68: 20250115 | F68: 214.72 | G68: 71.57 | H68: 42.94 | I68: 74.00 | J68: 29.60 | K68: 72.54 | L68: 6
A69: 66 | B69: 邓淑贤 | C69: 202512011114 | D69: 贵安新区社会事业服务中心 | E69: 20250116 | F69: 221.61 | G69: 73.87 | H69: 44.32 | I69: 81.20 | J69: 32.48 | K69: 76.80 | L69: 1 | M69: 是
A70: 67 | B70: 莫靖婷 | C70: 202512012412 | D70: 贵安新区社会事业服务中心 | E70: 20250116 | F70: 222.15 | G70: 74.05 | H70: 44.43 | I70: 79.80 | J70: 31.92 | K70: 76.35 | L70: 2
A71: 68 | B71: 刘芳伶 | C71: 202512012004 | D71: 贵安新区社会事业服务中心 | E71: 20250116 | F71: 220.79 | G71: 73.60 | H71: 44.16 | I71: 80.20 | J71: 32.08 | K71: 76.24 | L71: 3
A72: 69 | B72: 田甜 | C72: 202512012015 | D72: 贵安新区投资促进和商贸服务中心 | E72: 20250117 | F72: 207.18 | G72: 69.06 | H72: 41.44 | I72: 81.60 | J72: 32.64 | K72: 74.08 | L72: 1 | M72: 是
A73: 70 | B73: 张芳 | C73: 202512012601 | D73: 贵安新区投资促进和商贸服务中心 | E73: 20250117 | F73: 196.77 | G73: 65.59 | H73: 39.35 | I73: 82.60 | J73: 33.04 | K73: 72.39 | L73: 2
A74: 71 | B74: 项兆佳 | C74: 202512011915 | D74: 贵安新区投资促进和商贸服务中心 | E74: 20250117 | F74: 195.31 | G74: 65.10 | H74: 39.06 | I74: 83.20 | J74: 33.28 | K74: 72.34 | L74: 3
A75: 72 | B75: 王茂容 | C75: 202512010926 | D75: 贵安新区投资促进和商贸服务中心 | E75: 20250118 | F75: 227.80 | G75: 75.93 | H75: 45.56 | I75: 82.20 | J75: 32.88 | K75: 78.44 | L75: 1 | M75: 是
A76: 73 | B76: 杨双穗 | C76: 202512010402 | D76: 贵安新区投资促进和商贸服务中心 | E76: 20250118 | F76: 222.48 | G76: 74.16 | H76: 44.50 | I76: 81.80 | J76: 32.72 | K76: 77.22 | L76: 2
A77: 74 | B77: 万雨欧 | C77: 202512011511 | D77: 贵安新区投资促进和商贸服务中心 | E77: 20250118 | F77: 220.15 | G77: 73.38 | H77: 44.03 | I77: 82.60 | J77: 33.04 | K77: 77.07 | L77: 3
A78: 75 | B78: 陈琴 | C78: 202512012628 | D78: 贵安新区投资促进和商贸服务中心 | E78: 20250119 | F78: 228.33 | G78: 76.11 | H78: 45.67 | I78: 85.20 | J78: 34.08 | K78: 79.75 | L78: 1 | M78: 是
A79: 76 | B79: 向雪妍 | C79: 202512011809 | D79: 贵安新区投资促进和商贸服务中心 | E79: 20250119 | F79: 218.69 | G79: 72.90 | H79: 43.74 | I79: 70.60 | J79: 28.24 | K79: 71.98 | L79: 2
A80: 77 | B80: 陈世强 | C80: 202512013320 | D80: 贵安新区投资促进和商贸服务中心 | E80: 20250119 | F80: 215.44 | G80: 71.81 | H80: 43.09 | I80: 缺考 | J80: 0.00 | K80: 43.09 | L80: 3
